bitfinex/quotes_ETHUSD_20250914
["timestamp","ask_amount","ask_price","bid_price","bid_amount"]
[1757883502906,3.584,4617.4,4617.3,4.32837022]
[1757883503607,3.584,4617.4,4617.3,4.30671255]
[1757883504008,3.584,4617.4,4617.3,3.62321081]
[1757883504234,3.584,4617.4,4617.3,1.16484294]
[1757883504413,3.584,4617.4,4617.3,0.001]
[1757883504617,3.8882,4617.4,4617.3,0.001]
[1757883505225,3.8882,4617.4,4617.3,2.16676787]
[1757883506842,4.3282,4617.4,4617.3,2.16676787]
[1757883509330,4.3282,4617.4,4617.3,0.001]
[1757883511240,4.8218,4617.4,4617.3,0.001]
[1757883511838,4.8218,4617.4,4617.3,1.16484294]
[1757883512630,4.8218,4617.4,4617.3,0.001]
[1757883514443,4.3282,4617.4,4617.3,0.001]
[1757883515919,4.3282,4617.4,4617.3,2.16676787]
[1757883516131,4.3282,4617.4,4617.3,3.33061081]
[1757883516337,4.3282,4617.4,4617.3,2.16676787]
[1757883516645,4.3282,4617.4,4617.3,0.001]
[1757883517153,3.8882,4617.4,4617.3,2.16676787]
[1757883517571,3.8882,4617.4,4617.3,0.001]
[1757883517762,0.3042,4617.4,4617.3,0.001]
[1757883518055,4.3278,4617.4,4617.3,0.001]
[1757883519484,4.3278,4617.4,4617.3,2.16676787]
[1757883519654,4.3278,4617.4,4617.3,0.001]
[1757883521180,4.3278,4617.4,4617.3,2.16676787]
[1757883521484,4.3278,4617.4,4617.3,0.001]
[1757883525583,4.3278,4617.4,4617.3,1.16484294]
[1757883526591,4.3278,4617.4,4617.3,0.65119858]
[1757883529888,3.8882,4617.4,4617.3,0.65119858]
[1757883534293,4.3562,4617.4,4617.3,1.81504152]
[1757883534798,3.583,4617.4,4617.3,4.75926706]
[1757883534994,3.583,4617.4,4617.3,5.48423814]
[1757883536867,3.583,4617.4,4617.3,5.59223814]
[1757883537062,3.583,4617.4,4617.3,4.4283952]
[1757883538500,3.583,4617.4,4617.3,5.59745343]
[1757883538902,0.20238457,4618.0,4617.7,2.16554571]
[1757883539101,3.583,4617.9,4617.8,0.02165533]
[1757883539302,4.3557,4617.9,4617.8,0.02165533]
[1757883539503,4.55808457,4617.9,4617.8,0.02165533]
[1757883540096,4.09008457,4617.9,4617.8,0.02165533]
[1757883540298,3.78538457,4617.9,4617.8,0.02165533]
[1757883540504,3.583,4617.9,4617.8,0.02165533]
[1757883540982,3.8773,4617.9,4617.8,0.02165533]
[1757883541173,4.328,4617.9,4617.8,0.02165533]
[1757883541375,4.53038457,4617.9,4617.8,0.02165533]
[1757883544403,4.53038457,4617.9,4617.8,2.1871887]
[1757883544592,4.53038457,4617.9,4617.8,0.02165533]
[1757883547604,4.99968457,4617.9,4617.8,0.02165533]
[1757883549679,4.99968457,4617.9,4617.6,0.02165627]
[1757883549882,4.3466,4617.9,4617.8,0.65016899]
[1757883550080,4.54872982,4617.9,4617.8,0.65016899]
[1757883550481,4.99942982,4617.9,4617.8,0.65016899]
[1757883560588,4.53012982,4617.9,4617.8,0.65016899]
[1757883560921,4.53012982,4617.9,4617.8,0.65116899]
[1757883565707,3.78512982,4617.9,4617.8,2.81670236]
[1757883565913,3.583,4617.9,4617.8,0.95216899]
[1757883566129,3.583,4617.9,4617.8,0.97382432]
[1757883566434,3.583,4617.9,4617.8,3.13935769]
[1757883570439,3.583,4617.9,4617.8,3.77231577]
[1757883570639,3.583,4617.9,4617.8,4.81361577]
[1757883570943,0.108,4618.7,4617.8,4.81361577]
[1757883570944,0.108,4618.7,4618.4,2.16522891]
[1757883571105,3.583,4618.6,4618.5,0.02165205]
[1757883571537,3.583,4618.6,4618.4,0.02165252]
[1757883571716,3.78505319,4618.6,4618.4,0.67173979]
[1757883571915,3.583,4618.6,4618.4,0.67173979]
[1757883573939,3.583,4618.6,4618.5,2.47430515]
[1757883574611,3.583,4618.6,4618.5,3.12436988]
[1757883575012,3.583,4618.6,4618.5,3.14602193]
[1757883575358,3.8715,4618.6,4618.5,0.65006473]
[1757883575541,4.8242,4618.6,4618.5,0.65006473]
[1757883580267,3.583,4618.6,4618.5,0.65006473]
[1757883580443,4.8242,4618.6,4618.5,0.65006473]
[1757883580639,3.583,4618.6,4618.5,0.65006473]
[1757883581171,3.583,4618.6,4618.5,0.95916473]
[1757883581344,3.583,4618.6,4618.5,3.12436988]
[1757883581754,3.583,4618.6,4618.5,0.95916473]
[1757883582252,3.583,4618.6,4618.5,3.12436988]
[1757883582938,3.583,4618.6,4618.5,0.95916473]
[1757883583558,3.583,4618.6,4618.5,3.12436988]
[1757883584775,3.583,4618.6,4618.5,0.95916473]
[1757883585239,3.583,4618.6,4618.5,0.65006473]
[1757883585441,4.3345,4618.6,4618.5,0.65006473]
[1757883585662,4.3345,4618.6,4618.5,2.81526988]
[1757883586562,3.583,4618.6,4618.5,0.3091]
[1757883586744,3.8715,4618.6,4618.3,2.81532996]
[1757883586952,0.463,4618.5,4618.3,2.81532996]
[1757883587132,3.582,4618.4,4618.3,2.81532996]
[1757883587649,3.8705,4618.4,4618.3,2.81532996]
[1757883588440,3.582,4618.4,4618.3,3.12442996]
[1757883588658,3.582,4618.4,4618.3,2.81532996]
[1757883589665,3.582,4618.4,4618.3,3.12442996]
[1757883590370,3.582,4618.4,4618.3,3.60552996]
[1757883591384,3.582,4618.4,4618.3,3.12442996]
[1757883593983,3.582,4618.4,4618.3,3.12542996]
[1757883594885,3.582,4618.4,4618.3,3.58532996]
[1757883596383,3.69,4618.7,4618.3,1.42006474]
[1757883596588,3.69,4618.7,4618.5,2.16516978]
[1757883596788,4.1446,4618.7,4618.6,0.02165158]
[1757883597499,4.4393,4618.7,4618.6,0.02165158]
[1757883598091,4.8906,4618.7,4618.3,2.81632112]
[1757883598273,0.9059,4618.6,4618.3,2.81632112]
[1757883598590,0.4546,4618.5,4618.4,2.16524283]
[1757883598811,3.69,4618.7,4618.5,2.16517861]
[1757883599119,0.7493,4618.6,4618.5,2.16517861]
[1757883600209,0.7493,4618.6,4618.4,0.02165252]
[1757883600210,3.69,4618.7,4618.4,0.02165252]
[1757883600414,3.69,4618.7,4618.6,2.16515827]
[1757883600577,3.69,4618.7,4618.6,2.18680985]
[1757883600782,3.69,4618.7,4618.6,2.16515827]
[1757883602618,3.69,4618.7,4618.4,0.02165252]
[1757883602815,3.69,4618.7,4618.6,2.16515827]
[1757883604414,3.89211298,4618.7,4618.6,2.16515827]
[1757883604614,3.69,4618.7,4618.6,2.16515827]
[1757883604828,3.89211298,4618.7,4618.6,2.16515827]
[1757883605116,4.4465,4618.7,4618.4,2.1652089]
[1757883605303,0.65771298,4618.6,4618.3,2.81636041]
[1757883605511,0.20211298,4618.6,4618.3,1.28824604]
[1757883605814,0.3009,4618.4,4618.3,1.28824604]
[1757883606033,0.7565,4618.4,4618.3,3.45354495]
[1757883607634,0.3009,4618.4,4618.3,3.45354495]
[1757883607793,3.582,4618.5,4618.4,2.16525203]
[1757883608343,3.582,4618.5,4618.4,0.68958554]
[1757883608492,3.8829,4618.5,4618.3,2.81632674]
[1757883608929,3.8829,4618.5,4618.4,2.16525203]
[1757883610527,4.3385,4618.5,4618.3,2.81635444]
[1757883610733,4.3385,4618.5,4618.4,2.16525203]
[1757883610932,4.3385,4618.5,4618.4,2.57458955]
[1757883612811,4.3385,4618.5,4618.4,3.22464443]
[1757883613338,4.3385,4618.5,4618.4,1.0593924]
[1757883613540,4.3385,4618.5,4618.3,0.001]
[1757883613744,4.3385,4618.5,4618.4,2.16525203]
[1757883615342,4.8105,4618.5,4618.3,0.65105487]
[1757883615646,0.4556,4618.4,4618.3,2.81635378]
[1757883616108,0.7565,4618.4,4618.3,2.81635378]
[1757883616940,0.3009,4618.4,4618.3,2.81635378]
[1757883617568,3.582,4618.5,4618.4,2.16525203]
[1757883617737,3.8829,4618.5,4618.4,2.16525203]
[1757883617940,4.3385,4618.5,4618.4,2.16525203]
[1757883620112,3.8829,4618.5,4618.4,2.16525203]
[1757883620755,3.582,4618.5,4618.4,2.16525203]
[1757883620907,3.582,4618.5,4618.4,2.46985203]
[1757883622059,3.582,4618.5,4618.4,2.49150455]
[1757883631172,3.582,4618.5,4618.4,2.18690455]
[1757883631377,3.8799,4618.5,4618.4,2.18690455]
[1757883631783,3.582,4618.5,4618.4,2.18690455]
[1757883634253,3.582,4618.5,4618.4,2.16525203]
[1757883636408,3.582,4618.5,4618.4,2.18690455]
[1757883640319,3.582,4618.5,4618.4,2.16525203]
[1757883641601,3.582,4618.5,4618.4,2.47325203]
[1757883641906,3.582,4618.5,4618.4,2.49490455]
[1757883645815,3.582,4618.5,4618.4,2.47056667]
[1757883645981,3.582,4618.5,4618.4,2.16256667]
[1757883646916,3.582,4618.5,4618.4,2.79096902]
[1757883657228,3.8707,4618.5,4618.4,2.79096902]
[1757883657439,4.3357,4618.5,4618.4,2.79096902]
[1757883658430,4.3357,4618.5,4618.4,0.65005487]
[1757883658630,4.7872,4618.5,4618.4,0.65005487]
[1757883659208,4.7872,4618.5,4618.4,2.8153069]
[1757883662031,4.7892,4618.5,4618.4,2.8153069]
[1757883662719,4.3377,4618.5,4618.4,2.8153069]
[1757883664538,4.7982,4618.5,4618.4,0.65005487]
[1757883665526,4.7982,4618.5,4618.4,2.8153069]
[1757883666644,4.7982,4618.5,4618.4,0.65005487]
[1757883667438,4.7982,4618.5,4618.4,2.8153069]
[1757883667830,4.7982,4618.5,4618.4,0.65005487]
[1757883668031,2.16525203,4618.4,4618.3,0.001]
[1757883668217,2.48853745,4618.4,4618.3,0.001]
[1757883668537,3.67413745,4618.4,4618.3,0.001]
[1757883668931,3.78712549,4618.4,4618.3,0.001]
[1757883669120,4.78981689,4618.4,4618.3,0.001]
[1757883672439,4.66861417,4618.4,4618.3,0.001]
[1757883677434,2.50336214,4618.4,4618.3,0.001]
[1757883677841,2.50291296,4618.4,4618.3,0.001]
[1757883680167,4.67016499,4618.4,4618.3,0.001]
[1757883680458,2.50491296,4618.4,4618.3,0.001]
[1757883681647,4.46853147,4618.4,4618.3,0.001]
[1757883681858,4.67013934,4618.4,4618.3,0.001]
[1757883682461,2.50488731,4618.4,4618.3,0.001]
[1757883682856,0.31659591,4618.4,4618.3,0.001]
[1757883683057,0.11498804,4618.4,4618.3,0.001]
[1757883685951,0.84008804,4618.4,4618.3,0.001]
[1757883686356,1.04169591,4618.4,4618.3,0.001]
[1757883687490,3.66744794,4618.4,4618.3,0.001]
[1757883687775,4.60911106,4618.4,4618.3,0.001]
[1757883691182,4.73013906,4618.4,4618.3,0.001]
[1757883697791,4.73055568,4618.4,4618.3,0.001]
[1757883705290,4.73084834,4618.4,4618.3,0.001]
[1757883706868,2.10509631,4618.4,4618.3,0.001]
[1757883707070,0.73393319,4618.4,4618.3,0.001]
[1757883707275,0.43833319,4618.4,4618.3,0.001]
[1757883707481,2.60358522,4618.4,4618.3,0.001]
[1757883707879,0.43833319,4618.4,4618.3,0.001]
[1757883708102,0.31707876,4618.4,4618.3,0.001]
[1757883708281,0.43833327,4618.4,4618.3,0.001]
[1757883709000,0.31707876,4618.4,4618.3,0.001]
[1757883709701,0.43833327,4618.4,4618.3,0.001]
[1757883710102,2.6035853,4618.4,4618.3,0.001]
[1757883710471,0.43833327,4618.4,4618.3,0.001]
[1757883711394,0.31707876,4618.4,4618.3,0.001]
[1757883711917,0.43833327,4618.4,4618.3,0.001]
[1757883712687,0.108,4618.3,4618.1,0.10851171]
[1757883712913,5.244,4618.2,4618.1,0.10851171]
[1757883713116,5.56734771,4618.2,4618.1,0.40971171]
[1757883714816,1.98634771,4618.2,4618.1,0.87331171]
[1757883715116,5.44609232,4618.2,4618.1,1.31211171]
[1757883715312,5.56734771,4618.2,4618.1,1.31211171]
[1757883715696,5.56734771,4618.2,4618.1,0.87331171]
[1757883716314,1.98634771,4618.2,4618.1,0.87331171]
[1757883716487,5.44609232,4618.2,4618.1,0.87431171]
[1757883716690,5.56734771,4618.2,4618.1,0.87431171]
[1757883716889,5.56736612,4618.2,4618.1,0.87431171]
[1757883720497,5.56735363,4618.2,4618.1,0.87431171]
[1757883721730,5.56735363,4618.2,4618.1,1.31651171]
[1757883723223,5.56735363,4618.2,4618.1,0.87431171]
[1757883728498,5.56735363,4618.2,4618.1,0.41071171]
[1757883728901,6.34995363,4618.2,4618.1,0.10951171]
[1757883730134,7.49349973,4618.2,4618.1,0.10951171]
[1757883730339,9.65884553,4618.2,4618.1,0.10951171]
[1757883738945,9.6588187,4618.2,4618.1,0.10951171]
[1757883742714,8.7038187,4618.2,4618.1,0.10951171]
[1757883742944,8.70380454,4618.2,4618.1,0.10951171]
[1757883743448,9.17000454,4618.2,4618.1,0.10951171]
[1757883745718,6.22205874,4618.2,4618.1,0.10951171]
[1757883745940,5.56731264,4618.2,4618.1,0.10951171]
[1757883747236,5.56731764,4618.2,4618.1,0.10951171]
[1757883748018,5.56731752,4618.2,4618.1,0.10951171]
[1757883750648,5.56733543,4618.2,4618.1,0.10951171]
[1757883755149,5.56733543,4618.2,4618.1,0.41791171]
[1757883756551,5.56733543,4618.2,4618.1,0.10951171]
[1757883762154,1.98633543,4618.2,4618.1,0.41791171]
[1757883762326,5.44612342,4618.2,4618.1,0.89851171]
[1757883762535,5.56739747,4618.2,4618.1,0.89851171]
[1757883762944,5.44612342,4618.2,4618.1,3.0639044]
[1757883763259,5.244,4618.2,4618.1,4.04640879]
[1757883765168,0.002,4618.3,4618.2,2.1653458]
[1757883765369,3.583,4618.3,4618.2,3.12479925]
[1757883765575,3.583,4618.3,4618.2,4.40089441]
[1757883768380,0.002,4618.3,4618.2,4.40089441]
[1757883769547,0.002,4618.3,4618.2,3.92204096]
[1757883772381,0.002,4618.3,4618.2,3.44144096]
[1757883782395,0.002,4618.3,4618.2,3.93984096]
[1757883787101,0.002,4618.3,4618.2,3.44144096]
[1757883791336,0.002,4618.3,4618.2,3.93984096]
[1757883792187,0.002,4618.3,4618.2,3.96149441]
[1757883792387,0.002,4618.3,4618.2,3.93984096]
[1757883792782,0.002,4618.3,4618.2,3.44144096]
[1757883792992,0.002,4618.3,4618.2,3.96149441]
[1757883793292,0.002,4618.3,4618.2,5.13055287]
[1757883793628,0.002,4618.3,4618.2,4.61049942]
[1757883804629,0.002,4618.3,4618.2,3.44144096]
[1757883804837,0.002,4618.3,4618.2,3.46309441]
[1757883807207,0.002,4618.3,4618.2,2.49539925]
[1757883813744,0.002,4618.3,4618.2,2.58207173]
[1757883835291,0.002,4618.3,4618.2,6.86137173]
[1757883835448,0.002,4618.3,4618.2,7.28531828]
[1757883836474,0.002,4618.3,4618.2,8.84248547]
[1757883837177,1e-08,4618.4,4618.3,5.95729891]
[1757883837347,1e-08,4618.8,4618.7,2.95711139]
[1757883837547,1e-08,4618.8,4618.7,6.8557625]
[1757883837765,1e-08,4618.8,4618.7,7.73501139]
[1757883837971,1e-08,4618.8,4618.7,7.82165608]
[1757883838176,1e-08,4619.0,4618.9,5.95701764]
[1757883838376,1e-08,4619.0,4618.9,9.53601764]
[1757883838682,1e-08,4619.0,4618.9,12.28994867]
[1757883838850,1e-08,4619.0,4618.9,12.3765898]
[1757883839352,1e-08,4619.0,4618.9,10.82155877]
[1757883839651,1e-08,4619.0,4618.9,12.40559727]
[1757883842759,1e-08,4619.0,4618.9,7.92569727]
[1757883842989,1e-08,4619.0,4618.9,11.50469727]
[1757883845153,1e-08,4619.0,4618.9,11.61269727]
[1757883850662,1e-08,4619.0,4618.9,12.11259727]
[1757883850863,1e-08,4619.0,4618.9,12.57429727]
[1757883851778,0.002,4619.5,4619.2,2.16487703]
[1757883851970,0.002,4619.5,4619.2,10.2510298]
[1757883852177,0.002,4619.5,4619.2,11.48508103]
[1757883852384,0.002,4619.5,4619.2,11.57171559]
[1757883854977,1e-08,4619.4,4619.3,2.95683016]
[1757883855163,1e-08,4619.4,4619.3,5.52411696]
[1757883855363,1e-08,4619.4,4619.3,5.79656866]
[1757883855566,1e-08,4619.4,4619.3,5.88320265]
[1757883856979,1e-08,4619.4,4619.3,5.42150265]
[1757883859983,1e-08,4619.4,4619.3,4.92160265]
[1757883860484,1e-08,4619.4,4619.3,4.92260265]
[1757883860885,1e-08,4619.4,4619.3,9.12260265]
[1757883865306,1e-08,4619.4,4619.3,10.67763368]
[1757883867302,1e-08,4619.4,4619.3,9.12260265]
[1757883869903,1e-08,4619.4,4619.3,8.82850265]
[1757883877822,1e-08,4619.4,4619.3,9.13730265]
[1757883886009,1e-08,4619.4,4619.3,8.82850265]
[1757883890333,1e-08,4619.4,4619.3,9.13730265]
[1757883891284,1e-08,4619.4,4619.3,8.82850265]
[1757883894795,0.76740001,4619.4,4619.3,8.82850265]
[1757883894961,1.20190001,4619.4,4619.3,12.40550265]
[1757883895545,0.73060001,4619.4,4619.3,12.40550265]
[1757883895845,0.29610001,4619.4,4619.3,12.40550265]
[1757883896260,0.73060001,4619.4,4619.3,12.40550265]
[1757883897792,1e-08,4619.4,4619.3,12.40550265]
[1757883901298,0.31500001,4619.4,4619.3,12.40550265]
[1757883901797,0.78790001,4619.4,4619.3,12.40550265]
[1757883904413,1.28400001,4619.4,4619.3,6.45246415]
[1757883904704,1.28400001,4619.4,4619.3,9.45246415]
[1757883906006,0.78790001,4619.4,4619.3,9.45246415]
[1757883906210,0.78790001,4619.4,4619.3,10.24446415]
[1757883907112,0.31500001,4619.4,4619.3,10.24446415]
[1757883907312,1e-08,4619.4,4619.3,12.90280984]
[1757883907992,1e-08,4619.4,4619.3,14.56480984]
[1757883909503,1e-08,4619.4,4619.3,10.36480984]
[1757883910914,1e-08,4619.4,4619.3,10.81370984]
[1757883911613,1e-08,4619.4,4619.3,10.36480984]
[1757883912994,0.37090001,4619.9,4619.8,2.95659586]
[1757883913322,0.37090001,4619.9,4619.8,7.06836798]
[1757883913521,0.68590001,4619.9,4619.8,7.04672203]
[1757883913708,1.18200001,4619.9,4619.8,7.52562204]
[1757883915396,1.18200001,4619.9,4619.8,1.78302618]
[1757883915732,1.18200001,4619.9,4619.8,5.36102618]
[1757883915891,1.18200001,4619.9,4619.8,1.27090001]
[1757883916216,1.18200001,4619.9,4619.8,1.64667825]
[1757883916436,1.18200001,4619.9,4619.8,6.51577824]
[1757883916589,1.18200001,4619.9,4619.8,5.348]
[1757883916790,1.18200001,4619.9,4619.8,6.51576241]
[1757883916987,3.34654902,4619.9,4619.8,1.27576241]
[1757883917196,3.68180392,4619.9,4619.8,0.108]
[1757883917396,2.16464272,4619.7,4619.5,1.16776241]
[1757883917601,0.969,4619.8,4619.6,0.108]
[1757883917797,2.16464272,4619.7,4619.6,0.108]
[1757883918096,2.16473644,4619.5,4619.3,0.001]
[1757883918301,2.1647833,4619.4,4619.3,0.001]
[1757883918509,3.4487833,4619.4,4619.3,0.001]
[1757883918727,4.21204034,4619.4,4619.3,0.001]
[1757883919517,7.21204034,4619.4,4619.3,0.001]
[1757883919827,10.79204034,4619.4,4619.3,0.001]
[1757883919990,10.59013527,4619.4,4619.3,0.001]
[1757883920487,2.1653458,4618.2,4617.8,0.001]
[1757883920686,10.4103458,4618.2,4617.8,0.001]
[1757883920902,10.4103458,4618.2,4617.8,1e-08]
[1757883920903,2.16548647,4617.9,4617.8,1e-08]
[1757883921100,5.16548647,4617.9,4617.8,1e-08]
[1757883921322,6.5704116,4617.9,4617.8,1e-08]
[1757883921620,7.85624199,4617.9,4617.8,1e-08]
[1757883921835,7.97718439,4617.9,4617.8,1e-08]
[1757883922222,8.17875442,4617.9,4617.8,1e-08]
[1757883922934,7.85624199,4617.9,4617.8,1e-08]
[1757883923909,11.44124199,4617.9,4617.8,1e-08]
[1757883924530,11.76370928,4617.9,4617.8,1e-08]
[1757883925128,11.763709,4617.9,4617.8,1e-08]
[1757883926534,11.64278387,4617.9,4617.8,1e-08]
[1757883927402,11.44124199,4617.9,4617.8,1e-08]
[1757883927937,7.85624199,4617.9,4617.8,1e-08]
[1757883928122,2.48048647,4617.9,4617.8,1e-08]
[1757883928310,6.06548647,4617.9,4617.8,1e-08]
[1757883928515,7.03448647,4617.9,4617.8,1e-08]
[1757883929627,7.03548647,4617.9,4617.8,1e-08]
[1757883930334,7.14348647,4617.9,4617.8,1e-08]
[1757883932410,8.24057601,4617.9,4617.8,1e-08]
[1757883935510,8.13257601,4617.9,4617.8,1e-08]
[1757883935835,8.21928231,4617.9,4617.8,1e-08]
[1757883937054,8.22028231,4617.9,4617.8,1e-08]
[1757883939763,11.22028231,4617.9,4617.8,1e-08]
[1757883939964,15.04334139,4617.9,4617.8,1e-08]
[1757883940531,11.22028231,4617.9,4617.8,1e-08]
[1757883944234,11.22228231,4617.9,4617.8,1e-08]
[1757883944442,11.42272431,4617.9,4617.8,1e-08]
[1757883945370,11.54311911,4617.9,4617.8,1e-08]
[1757883946675,11.22228231,4617.9,4617.8,1e-08]
[1757883946986,11.5437193,4617.9,4617.8,1e-08]
[1757883947272,11.457013,4617.9,4617.8,1e-08]
[1757883947785,2.16576787,4617.3,4617.2,1e-08]
[1757883948129,14.45640374,4617.3,4617.2,1e-08]
[1757883948375,14.45640374,4617.3,4616.8,0.001]
[1757883948376,16.81514073,4617.3,4616.8,0.001]
[1757883948578,9.78101459,4616.9,4616.8,1e-08]
[1757883948877,14.15544194,4616.9,4616.8,1e-08]
[1757883949072,13.4438723,4616.9,4616.8,1e-08]
[1757883949273,17.0328723,4616.9,4616.8,1e-08]
[1757883950890,17.03337077,4616.9,4616.8,1e-08]
[1757883951091,17.03437077,4616.9,4616.8,1e-08]
[1757883951803,16.52399844,4616.9,4616.8,1e-08]
[1757883954380,17.17460454,4616.9,4616.8,1e-08]
[1757883954582,17.17442012,4616.9,4616.8,1e-08]
[1757883954886,13.86173337,4616.9,4616.8,1e-08]
[1757883957215,17.17442012,4616.9,4616.8,1e-08]
[1757883963822,18.47442012,4616.9,4616.8,1e-08]
[1757883964139,9.27087685,4616.4,4616.3,0.001]
[1757883964302,9.27087685,4616.4,4615.8,0.001]
[1757883964303,0.792,4616.0,4615.8,0.001]
[1757883964500,12.57182366,4615.9,4615.8,0.001]
[1757883964697,14.07795289,4615.9,4615.8,0.001]
[1757883964900,16.17131303,4615.9,4615.8,0.001]
[1757883965099,16.27853303,4615.9,4615.8,0.001]
[1757883966997,17.07053303,4615.9,4615.8,0.001]
[1757883968742,17.07046881,4615.9,4615.8,0.001]
[1757883973182,17.07046881,4615.9,4613.2,0.11309369]
[1757883973183,2.16764571,4613.3,4613.2,0.11309369]
[1757883973465,2.16764571,4613.3,4612.8,0.08]
[1757883973466,2.16825672,4612.0,4611.6,0.471]
[1757883973674,2.16825672,4612.0,4610.8,0.08]
[1757883973675,6.82146727,4612.0,4610.8,0.4644]
[1757883973831,2.16877399,4610.9,4610.8,0.08]
[1757883974030,10.83395587,4610.9,4610.8,1e-08]
[1757883974250,7.03351827,4610.9,4610.8,1e-08]
[1757883974478,7.03351827,4610.9,4609.8,0.0871]
[1757883974479,2.16924445,4609.9,4609.8,0.0871]
[1757883974637,7.71498873,4609.9,4609.8,0.0871]
[1757883974837,4.03398873,4609.9,4609.8,0.2264]
[1757883975137,10.82819962,4609.9,4609.8,0.1393]
[1757883975338,7.14719962,4609.9,4609.8,0.6318]
[1757883975527,10.07184183,4609.9,4609.8,0.6318]
[1757883975756,6.38584183,4609.9,4609.8,0.6318]
[1757883976137,10.07284183,4609.9,4609.8,0.6318]
[1757883976671,1.21659738,4609.9,4609.8,0.6318]
[1757883976833,5.35,4609.9,4609.8,0.6318]
[1757883977039,4.13789062,4609.9,4609.8,0.6318]
[1757883977233,1.664,4610.0,4609.8,0.6318]
[1757883977444,1.664,4610.1,4609.8,0.1393]
[1757883977637,5.36,4610.0,4609.8,0.1393]
[1757883977852,1.665,4609.9,4609.8,0.37017253]
[1757883978041,1.665,4609.9,4609.8,0.1403]
[1757883978667,1.665,4609.9,4609.8,0.6328]
[1757883979772,5.36,4609.9,4609.8,0.6328]
[1757883979949,1.665,4609.9,4609.8,0.6328]
[1757883980150,5.358,4609.9,4609.8,0.91301839]
[1757883980974,5.358,4609.9,4609.8,0.6328]
[1757883981456,1.665,4609.9,4609.8,0.6328]
[1757883981651,5.358,4609.9,4609.8,2.8020915]
[1757883983173,5.357,4609.9,4609.8,2.8020915]
[1757883984158,5.357,4609.9,4609.8,0.6328]
[1757883984359,5.357,4609.9,4609.8,1.14075599]
[1757883985653,5.357,4609.9,4609.8,3.31004749]
[1757883986452,5.357,4609.9,4609.8,1.14075599]
[1757883986691,5.357,4609.9,4609.8,0.6328]
[1757883987459,5.55621991,4609.9,4609.8,2.8020915]
[1757883987660,5.55621991,4609.9,4609.8,0.6328]
[1757883988059,5.55621991,4609.9,4609.8,2.8020915]
[1757883989355,0.19921991,4609.9,4609.8,2.8020915]
[1757883989559,5.55021991,4609.9,4609.8,3.31220805]
[1757883991375,1.665,4609.9,4609.8,3.31220805]
[1757883991573,5.54850356,4609.9,4609.8,3.31220805]
[1757883991775,1.86450356,4609.9,4609.8,3.31220805]
[1757883991977,5.54850356,4609.9,4609.8,3.31220805]
[1757883992190,1.86450356,4609.9,4609.8,3.31220805]
[1757883992685,5.54750356,4609.9,4609.8,3.31220805]
[1757883993193,5.348,4609.9,4609.8,3.31220805]
[1757883993410,1.86475962,4609.9,4609.8,3.31220805]
[1757883993625,4.146,4609.9,4609.8,3.31220805]
[1757883993827,1.665,4609.9,4609.8,3.31220805]
[1757883994306,4.603,4609.9,4609.8,3.31220805]
[1757883995107,5.348,4609.9,4609.8,3.31220805]
[1757883995975,5.348,4609.9,4609.8,3.33390096]
[1757883996382,5.54809837,4609.9,4609.8,3.33390096]
[1757883996583,1e-08,4610.0,4609.9,2.96124445]
[1757883996881,1e-08,4610.0,4609.9,7.31099705]
[1757883997107,1e-08,4610.0,4609.9,7.45029705]
[1757884000701,1e-08,4610.0,4609.9,6.02649705]
[1757884000905,1e-08,4610.0,4609.9,2.16924445]
[1757884000906,0.77460001,4610.0,4609.9,2.16924445]
[1757884001298,0.47150001,4610.0,4609.9,2.16924445]
[1757884001486,1e-08,4610.0,4609.9,2.16924445]
[1757884003397,1e-08,4610.0,4609.9,2.30854445]
[1757884003721,1e-08,4610.0,4609.9,3.59304445]
[1757884003918,1e-08,4610.0,4609.9,4.1715514]
[1757884004293,1e-08,4610.0,4609.9,7.1715514]
[1757884006915,1e-08,4610.0,4609.9,7.2795514]
[1757884010206,0.002,4610.5,4609.9,7.2795514]
[1757884010207,0.002,4610.5,4610.4,2.96100919]
[1757884010405,0.002,4610.5,4610.4,9.76969928]
[1757884010600,0.002,4610.5,4610.4,10.86427912]
[1757884010802,0.002,4610.5,4610.4,11.35677912]
[1757884011118,0.002,4610.5,4610.4,10.86427912]
[1757884015224,0.002,4610.5,4610.4,11.26967912]
[1757884015425,0.002,4610.5,4610.4,11.35677912]
[1757884015864,0.002,4610.5,4610.4,11.26967912]
[1757884016149,0.002,4610.5,4610.4,11.35677912]
[1757884017825,0.002,4610.5,4610.4,11.26967912]
[1757884018031,0.002,4610.5,4610.4,11.35677912]
[1757884018341,0.002,4610.5,4610.4,10.86427912]
[1757884018739,0.002,4610.5,4610.4,11.26967912]
[1757884019249,0.002,4610.5,4610.4,10.86427912]
[1757884024163,0.4811,4611.4,4610.6,0.792]
[1757884024349,0.4437,4611.6,4611.5,2.16849181]
[1757884024536,0.4437,4611.6,4611.5,5.96517672]
[1757884024737,1.2246,4611.6,4611.5,8.94349181]
[1757884026766,1.2246,4611.6,4611.5,5.27649181]
[1757884035078,0.481,4611.9,4611.8,2.16835075]
[1757884035279,1.2246,4611.9,4611.8,2.16835075]
[1757884035470,1.2246,4611.9,4611.8,2.27635075]
[1757884046007,0.7436,4611.9,4611.8,2.27635075]
[1757884046431,1.2266,4611.9,4611.8,2.27635075]
[1757884049038,1.2266,4611.9,4611.8,5.88629541]
[1757884049242,0.7456,4611.9,4611.8,5.88629541]
[1757884049944,1.2427,4611.9,4611.8,5.88629541]
[1757884050102,1.2427,4611.9,4611.8,5.27635075]
[1757884051904,0.002,4611.9,4611.8,5.27635075]
[1757884052111,0.002,4611.9,4611.8,5.41565075]
[1757884052608,0.002,4611.9,4611.8,5.27635075]
[1757884052826,0.7312,4611.9,4611.8,5.27635075]
[1757884053026,1.2283,4611.9,4611.8,5.27635075]
[1757884055329,0.002,4611.9,4611.8,6.38642778]
[1757884055534,0.002,4611.9,4611.8,6.52572778]
[1757884056942,0.002,4611.9,4611.8,10.96472778]
[1757884057355,0.002,4611.9,4611.8,10.82542778]